Cogmind - Beta 16.1 *** ADVENTURER MODE // 2026.02.23 @ 10:56:51 Player: triibiis Result: Destroyed by DW-39F(R) with Subdweller Machine Gun Performance ------------- Evolutions (0) 0 Regions Visited (2) 400 Robots Destroyed (12) 60 Value Destroyed (366) 366 Prototype IDs (0) 0 Alien Tech Used (0) 0 Bonus (0) 0 TOTAL SCORE: 826 Bonus ------- None Cogmind --------- Core Integrity 0/250 Matter 498/500 Energy 100/100 System Corruption 0% Temperature Cool (0) Movement Core (400) Ox7 Location -10/Subcaves Parts ------- > --- POWER (1) -------- (None) > --- PROPULSION (2) --- (None) > --- UTILITY (2) ------ Large Storage Unit High-capacity Matter Pod > --- WEAPON (2) ------- (None) > --- INVENTORY (15) --- Light Ion Engine Light Treads Light Treads Visual Processing Unit Signal Interpreter Improved Terrain Scanner Improved Terrain Scanner Seismic Detector Light Armor Plating Peak State ------------ > --- POWER ------------ Makeshift Power Source > --- PROPULSION ------- Wheel Subdweller Monowheel > --- UTILITY ---------- Large Storage Unit High-capacity Matter Pod > --- WEAPON ----------- Flamer > --- INVENTORY -------- Ion Engine Light Ion Engine Light Treads Light Treads Wheel Visual Processing Unit Signal Interpreter Improved Terrain Scanner Improved Terrain Scanner Seismic Detector Light Armor Plating Light Assault Rifle [Rating: 12] Favorites ----------- Power Ion Engine Engine Ion Engine Propulsion Wheel Wheel Wheel Utility High-capacity Matter Pod Storage High-capacity Matter Pod Weapon Light Assault Rifle Ballistic Gun Light Assault Rifle Special Weapon Flamer Build | -11 -10 -10 ------- Run | Yrd Mat Sub Slots Evolved . | . . . Power . | . . . Propulsion . | . . . Utility . | . . . Weapon . | . . . Parts Attached 15 | 6 2 7 Power 2 | 1 . 1 Engine 2 | 1 . 1 Core . | . . . Reactor . | . . . Propulsion 6 | 2 . 4 Treads . | . . . Leg . | . . . Wheel 6 | 2 . 4 Hover . | . . . Flight . | . . . Utility 3 | 1 2 . Device . | . . . Storage 3 | 1 2 . Processor . | . . . Hackware . | . . . Protection . | . . . Artifact . | . . . Weapon 4 | 2 . 2 Energy Gun . | . . . Energy Cannon . | . . . Ballistic Gun 2 | 2 . . Ballistic Cannon . | . . . Launcher . | . . . Special Weapon 2 | . . 2 Impact Weapon . | . . . Slashing Weapon . | . . . Piercing Weapon . | . . . Special Melee Weapon . | . . . Unidentified Prototypes . | . . . Parts Lost 8 | . . 8 Power 1 | . . 1 Propulsion 3 | . . 3 Utility . | . . . Weapon 4 | . . 4 Highest Loss Streak 4 | . . 4 To Critical Strikes . | . . . Average Backups 9 | 2 6 10 Power 1 | . 1 1 Propulsion 2 | 1 2 3 Utility 4 | . 2 6 Weapon . | . . . Tool/Special . | . . . Unused Backups 12 | . 2 10 Power 2 | . 1 1 Propulsion 2 | . . 2 Utility 7 | . . 7 Weapon 1 | . 1 . Tool/Special . | . . . Average Slot Usage (%) 92 | . 97 89 Engine 13 | . 14 13 Wheel 27 | . 26 27 Storage 27 | . 26 28 Ballistic Gun 16 | . 28 10 Special Weapon 5 | . . 8 Peak Build Rating 12 | 6 8 12 Average Rating 8 | 3 7 9 On Entrance 4 | . 6 8 Avg Prop Armor Cover (%) . | . . . Naked Turns . | . . . Heaviest Build 33 | 13 32 33 Greatest Support 40 | 26 26 40 Greatest Overweight (x) 7 | 4 1 7 Average Overweight (x) . | 1 . . Largest Inventory Capacity 15 | 8 15 15 Average Capacity 12 | 7 8 15 Most Carried 13 | 5 11 13 Average Carried 9 | 2 6 10 Final Capacity 15 | 8 15 15 Final Carried 10 | 4 10 9 Class Distribution -------------------- 100% | Mutant Dominant Class ---------------- Mutant | -10/Materials Mutant | -10/Subcaves Resources | -11 -10 -10 ----------- Run | Yrd Mat Sub Matter Collected 716 | 213 272 231 Remotely . | . . . Salvage Created 319 | . 203 116 Parts 24 | . 19 5 Haulers Intercepted . | . . . Recyclers Shooed . | . . . Parts Field Recycled . | . . . Retrieved Matter . | . . . Parts Self-Destructed 9 | . . 9 Prevented . | . . . Parts Restored . | . . . Kills | -11 -10 -10 ------- Run | Yrd Mat Sub Combat Hostiles Destroyed 11 | . 7 4 Guns 8 | . 7 1 Cannons 3 | . . 3 Classes Destroyed 4 | . 3 1 Tunneler 1 | . 1 . Swarmer 3 | . 3 . Grunt 4 | . 4 . Subdweller 4 | . . 4 Best Kill Streak 4 | . 4 1 Combat Bots Only 4 | . 4 1 Max Kills in Single Turn 1 | . 1 1 Gunslinging . | . . . Exploded . | . . . Melee . | . . . Uniques/NPCs Destroyed . | . . . Combat | -11 -10 -10 -------- Run | Yrd Mat Sub Hostile Shots Fired 81 | . 30 51 Missed 24 | . 9 15 Hits 57 | . 21 36 Projectile 57 | . 21 36 Critical Strikes 2 | . . 2 Damage Taken 825 | . 165 660 Core 257 | . 46 211 Absorbed by Shields . | . . . Ignored by Resistances 215 | . 51 164 Regen/Repaired (Parts) 48 | . 48 . Core Remaining (%) 100 | 100 . . Volleys Fired 63 | . 34 29 Largest 2 | . 2 2 Hottest 120 | . 40 120 Shots Fired 102 | . 68 34 Gun 86 | . 68 18 Cannon . | . . . Launcher . | . . . Special 16 | . . 16 Kinetic 86 | . 68 18 Thermal 16 | . . 16 Explosive . | . . . Electromagnetic . | . . . Robot Hit Streak 19 | . 5 19 Robot Miss Streak 2 | . 2 1 Penetration Max . | . . . Secondary Targets 1 | . 1 . Max Gunslinging Chain 1 | . 1 . Shots Hit Robots 59 | . 28 31 Core Hits 27 | . 14 13 Critical Kills 1 | . . 1 Critical Parts Destroyed . | . . . Critical Strikes 2 | . . 2 Burn 1 | . . 1 Destroy 1 | . . 1 Melee Attacks . | . . . Impact . | . . . Slashing . | . . . Piercing . | . . . Sneak Attacks . | . . . Combat Hostiles . | . . . Follow-up Attacks . | . . . Damage Inflicted 719 | . 429 290 Guns 423 | . 287 136 Cannons . | . . . Explosions 140 | . 140 . Melee . | . . . Ramming 2 | . 2 . Kinetic 423 | . 287 136 Thermal 154 | . . 154 Explosive 140 | . 140 . Electromagnetic . | . . . Impact . | . . . Slashing . | . . . Piercing . | . . . Highest Corruption . | . . . Average Corruption . | . . . Corruption Purged . | . . . Corruption Blocked . | . . . Overload Shots . | . . . Overflow Damage 34 | . 34 . Projectiles . | . . . Explosions 34 | . 34 . Melee . | . . . Knockbacks 1 | . 1 . Impact 1 | . 1 . Kinetic . | . . . Secondary . | . . . Self-Inflicted Damage 1 | . 1 . Shots . | . . . Rammed 2 | . 2 . Targets Rammed 2 | . 2 . Kicked . | . . . Crushed . | . . . Highest Temperature 15 | . 15 . Average Temperature 7 | . 7 . Received Heat Transfer 180 | . 78 102 Siege Activations . | . . . Martial Activations . | . . . Shielding Activations . | . . . Robots Disrupted 1 | . . 1 Combat Hostiles 1 | . . 1 Robots Corrupted . | . . . Combat Hostiles . | . . . Parts Fried . | . . . Impact Corruptions . | . . . Robots Melted . | . . . Combat Hostiles . | . . . Parts Melted . | . . . Heat Transferred 1280 | . . 1280 Parts Sabotaged . | . . . Parts Stolen . | . . . Parts Stripped . | . . . Power Chain Reactions . | . . . Alert | -11 -10 -10 ------- Run | Yrd Mat Sub Maximum Alert Level . | . . . Low Security (%) 100 | 100 100 . Level 1 . | . . . Level 2 . | . . . Level 3 . | . . . Level 4 . | . . . Level 5 . | . . . High Security . | . . . Max Security . | . . . Peak Influence 98 | . 98 . Initial . | . . . Average 23 | . 25 . Influence Increases 242 | . 242 . Destroy 0b10 Robot/C 140 | . 140 . Destroy 0b10 Robot/NC 5 | . 5 . Destroy Leader 40 | . 40 . Successful Hack 18 | . 18 . Disable Machine 18 | . 18 . Destroy Structure 21 | . 21 . Influence Decreases 242 | . 242 . Time Decay 242 | . 242 . Squads Dispatched 3 | . 3 . Investigation 3 | . 3 . Extermination . | . . . Reinforcement . | . . . Assault . | . . . Garrison . | . . . Intercept . | . . . Searches Triggered . | . . . Construction Impeded . | . . . Haulers Reinforced . | . . . Active Scanning Responses . | . . . Cargo Convoy Interrupts . | . . . Stealth | -11 -10 -10 --------- Run | Yrd Mat Sub Distress Signals . | . . . Communications Jammed . | . . . Distress Signals . | . . . Times Spotted 22 | . 13 9 Peak Tracking Total 4 | . 4 3 Tactical Retreats 1 | . . 1 Traps | -11 -10 -10 ------- Run | Yrd Mat Sub Traps Triggered 2 | . . 2 Indirectly . | . . . Trap Hack Attempts . | . . . Triggered . | . . . Disarmed . | . . . Reprogrammed 1 | . 1 . Reused . | . . . Traps Extracted . | . . . Installed . | . . . Triggered . | . . . Machines | -11 -10 -10 ---------- Run | Yrd Mat Sub Machines Disabled 2 | . 2 . Max in Single Turn 2 | . 2 . Machines Repaired . | . . . Machines Dismantled . | . . . Machines Sabotaged . | . . . Overloaded Fab Kills . | . . . Hacking | -11 -10 -10 --------- Run | Yrd Mat Sub Machines Accessed 7 | . 7 . Terminals 5 | . 5 . Fabricators . | . . . Repair Stations 1 | . 1 . Recycling Units 1 | . 1 . Scanalyzers . | . . . Garrison Access . | . . . Total Hacks 32 | . 32 . Successful 19 | . 19 . Failed 13 | . 13 . Catastrophic 4 | . 4 . Database Lockouts . | . . . Manual 13 | . 13 . Terminals 22 | . 22 . Fabricators . | . . . Repair Stations 5 | . 5 . Recycling Units 5 | . 5 . Scanalyzers . | . . . Garrison Access . | . . . Terminal Hacks 10 | . 10 . Level Access Points 1 | . 1 . Branch Access Points 1 | . 1 . Alert Level 1 | . 1 . Locate Traps 2 | . 2 . Reprogram Traps 1 | . 1 . Surveillance Status 1 | . 1 . Investigation Status 1 | . 1 . Registered Prototypes 1 | . 1 . Zone Layout 1 | . 1 . Fabricator Hacks . | . . . Repair Station Hacks 5 | . 5 . Scan Component 3 | . 3 . Repair 2 | . 2 . Recycling Unit Hacks 4 | . 4 . Process 1 | . 1 . Report Inventory 1 | . 1 . Retrieve Matter 1 | . 1 . Retrieve Components 1 | . 1 . Scanalyzer . | . . . Garrison Access Hacks . | . . . Unauthorized Hacks . | . . . Terminals . | . . . Fabricators . | . . . Repair Stations . | . . . Recycling Units . | . . . Scanalyzers . | . . . Garrison Access . | . . . Data Cores Recovered . | . . . Used . | . . . Hacking Detections 5 | . 5 . Full Trace Events 4 | . 4 . Feedback Events . | . . . Feedback Blocked . | . . . Robot Schematics Acquired . | . . . Robots Built . | . . . Authchips . | . . . Time . | . . . Total Robot Build Rating . | . . . Part Schematics Acquired . | . . . Parts Built . | . . . Authchips . | . . . Time . | . . . Total Part Build Rating . | . . . Part Studies Acquired . | . . . Parts Repaired 2 | . 2 . Time 52 | . 52 . Parts Recycled . | . . . Recycled Matter . | . . . Retrieved Matter . | . . . Retrieved Components 1 | . 1 . Parts Scanalyzed . | . . . Part Schematics Acquired . | . . . Parts Damaged . | . . . Bothacking | -11 -10 -10 ------------ Run | Yrd Mat Sub Used RIF Installer . | . . . Robots Hacked . | . . . Non-combat . | . . . Combat . | . . . Robot Hacks Applied . | . . . Relay Couplers Released . | . . . Fabnet Peak Effective % . | . . . Robots Rewired . | . . . Allies Hacked . | . . . Hacks Repelled . | . . . Allies | -11 -10 -10 -------- Run | Yrd Mat Sub Total Allies . | . . . Largest Group . | . . . Highest-Rated Group . | . . . Highest-Rated Ally . | . . . Total Orders . | . . . Ally Attacks . | . . . Total Damage . | . . . Kills . | . . . Allies Corrupted . | . . . Allies Melted . | . . . Intel | -11 -10 -10 ------- Run | Yrd Mat Sub Active Infowar (turns) . | . . . Robot Analysis Total . | . . . Derelict Logs Recovered 1 | . . 1 Drone Launches . | . . . Drone Recoveries . | . . . Exploration | -11 -10 -10 ------------- Run | Yrd Mat Sub Turns Passed 2207 | 79 752 1376 Spaces Moved 1898 | 48 624 1226 Core 27 | 26 . 1 Treads . | . . . Legs . | . . . Wheels 1871 | 22 624 1225 Hover . | . . . Flight . | . . . Fastest Speed 50 | 50 90 95 Average Speed 101 | 137 91 104 Slowest Speed 400 | 250 105 400 Overloaded Moves . | . . . Propulsion Burnouts . | . . . Robots Hopped . | . . . Potential Cave-ins . | . . . Cave-ins Triggered . | . . . Exploration Rate (%) 46 | 3 81 55 Regions Visited 2 Branch Regions 1 Pre-discovered Areas 1 | . . 1 Known Exits Taken . | . . . Unknown Exits Taken 2 | 1 1 . Scrap Searched 1 | . . 1 Spaces Dug . | . . . Terrain Destroyed 34 | . 34 . Melee . | . . . Projectile . | . . . AOE 34 | . 34 . Terrain Rammed . | . . . Walls Destroyed . | . . . Machines Disabled . | . . . Actions | -11 -10 -10 --------- Run | Yrd Mat Sub Total 2074 | 58 741 1275 Wait 66 | . 66 . Move 1896 | 47 623 1226 Hop . | . . . Pick Up 16 | 5 9 2 Fast Attach 11 | 5 3 3 Attach 5 | 1 . 4 Detach . | . . . Swap 4 | . 1 3 Drop 9 | . 3 6 Fire 63 | . 34 29 Melee . | . . . Ram 2 | . 2 . Kick . | . . . Crush . | . . . Escape Stasis . | . . . Rewire 2 | . . 2 Trap . | . . . Miscellaneous . | . . . Route ------- -11/Scrapyard -10/Materials (discovered 5 exits: *Mat x3 / Min / [*Sub]) -10/Subcaves History --------- Turn | Location | Event 22 | -11/Scrapyard | Discovered new exit (range 15) 80 | -11/Scrapyard | Entered Materials 183 | -10/Materials | Identified exit to Mines 183 | -10/Materials | Identified exit to Materials 317 | -10/Materials | Build established: Mutant 382 | -10/Materials | Repaired Com. Wheel 414 | -10/Materials | Repaired Wheel 580 | -10/Materials | Derelicts attacked the area 822 | -10/Materials | Discovered new exit (range 9) 832 | -10/Materials | Entered Subcaves 834 | -10/Subcaves | Shifting Twisted Machinery released Sub. Monowheel 868 | -10/Subcaves | Learned 2 Materials zone layouts 1022 | -10/Subcaves | Learned location of Zion (-6) 1022 | -10/Subcaves | Met a Zionite searching for "candidates" 1218 | -10/Subcaves | Shifting Twisted Machinery released Flamer 1363 | -10/Subcaves | Lost 3 parts (1n2w) 1433 | -10/Subcaves | Shifting Twisted Machinery released Battle Rifle 2182 | -10/Subcaves | A Subdweller sparked back to life 2182 | -10/Subcaves | A Subdweller sparked back to life 2182 | -10/Subcaves | A Subdweller sparked back to life 2185 | -10/Subcaves | Core integrity fell below 50% 2203 | -10/Subcaves | Core integrity fell below 20% 2208 | -10/Subcaves | Destroyed by DW-39F(R) with Subdweller Machine Gun Last Messages --------------- Acquired 42 matter. Acquired Lgt. Humpback. Dropped Lgt. Humpback. Acquired 16 matter. Attempting to rewire DW-39F(R). DW-39F(R) is broken beyond repair. Attempting to rewire DW-39F(R). DW-39F(R) is broken beyond repair. V9-Z46(R) creaks and sparks as it begins to move. DW-39F(R) creaks and sparks as it begins to move. 8D-LXT(R) creaks and sparks as it begins to move. V9-Z46(R) destroyed. Wheel destroyed. Mak. Power Source destroyed. DW-39F(R) affixes Scrap Shield Fragment to Scrap Shield. Lgt. Assault Rifle destroyed. Map ----- +----------------------------------------------------+ | ??????????????????????????????????????????? | | ??????????????????????????????????????????? | | ??????????????????????????????????????????? | | ??????????????????????????????????????????? | | ??????????????????????????????????????????? | | ??????????????????????????????????????????? | | ?????????????????????###??????????????????? | | ??????????????????### ??????????????????? | | ?????????????????## ??????????????????? | | ?????????????????# ???????????????????? | | ?????????????????# ???????????????????? | | ?????????????????? #####???????????????? | | ??????????????????# # ##??????????????? | | ??????????????????# # ##?????????????? | | ??????????????????# ## ###????##?????? | | ??????????????????# ! ### #????? | | ??????????????????# !% #?# ##???? | | ??????????????##### ### ##??? | | ??????????????# & " #????? ##?? | | ??????????????# " ##????? ##? | | ??????????????# "" ###???? #? | | ??????????????# R&!" #### #???? #? | | ??????????????# !%*###??## ##???? ## | | ??????????????# R##?????## ##???? # | | ??????????????# ####???# ##???# # | | ??????????????# @ #???# # #??## #? | | ??????????????# # # #?## #?? | | ??????????????# ## # ### #### #?# | | ??????????????####?## ##???## # ## | | ????????????????????? #???# | | ?????????????????????? #?###! | | ?????????????????##??? ?# !## ## | | ????????????????## #???######## #### # | | ????????????????# ####?????# ### # | | ????????????????# ##????## ### | | ????????????????# ##????# ## | | ?????????????????# ###??# ## | | ???????????????????# #??## #?## | | ????????????????#### ##??## #???## | | ????????????????# ## ############# | | ???????????????## #### ##### # # | | ???????????????# #??### | | ???????????????# #????# | | ???????????????## ##???# # # | | ????????????????# ##??# ## #### | | ???????????????## ### ### #??? | | ???????????????# ## ###### ##??? | | ???????????????##### ##? ### ##??? | | ???????????????????### ## #??? | | ????????????????????## ^ ?? | +----------------------------------------------------+ Best States ------------- Heat Dissipation 25 Energy Generation 15 Energy Capacity 250 Matter Stores 497 Matter Capacity 500 Sight Range 16 Terrain Scan Density 10 Resistance: KI 20 Resistance: TH 20 Resistance: EX 20 Resistance: EM 20 Resistance: I 20 Resistance: S 20 Resistance: P 20 Evasion (%) 42 Offensive Hacking 10 Item Schematics ----------------- None Robot Schematics ------------------ None Fabricated ------------ Nothing Repaired ---------- Com. Wheel | 26% | -10/Materials Wheel | 35% | -10/Materials Studied --------- None Alien Tech Used ----------------- None Achievements -------------- I Have A Map? Challenges ------------ None Game ------ Seed CoolantExpertFalx Manual? 0 Play Time 00:23:27 Cumulative 21.6 hours Start 2026.02.23 @ 10:28:59 End 2026.02.23 @ 10:56:51 Sessions 1 Manual Loads 0 Difficulty Adventurer Special Mode None Game No. 60 Rogue 0 Adventurer 60 Explorer 0 Win Type - Total 0 Types 0/0/0/0/0/0/0/0/0/0 Lore% 20 Gallery% 19 Achievement% 13 Wizard Run 0 Options --------- Layout 1 ASCII 0 Keyboard 0 Movement Arrows Keybinds 0 Fullscreen 1 Font 36/Smallcaps Map View 50x43 Zoom Use 0% Tactical HUD 0 Map Filters NONE Filters NONE Steam 1 RUN: c9ff7e65-63fa-4305-8e60-728118d3df3f